fUST/lending_fUST_20241115
["ID","MTS","AMOUNT","RATE_DAILY","PERIOD"]
[342237071,1731612640555,-9.45216672,0.00016438,2]
[342237089,1731612646603,-490.54783328,0.00016438,2]
[342237090,1731612646612,-500.0,0.00016438,2]
[342237091,1731612646621,-570.23,0.00016438,2]
[342237092,1731612646631,-457.64109037,0.00016438,2]
[342237093,1731612826643,276.562463,0.00013973,2]
[342237094,1731612854251,8845.1626531,0.00015525,2]
[342237095,1731613554507,271.13406,0.00013973,2]
[342237100,1731613832689,-416.3285168,0.00016238,2]
[342237101,1731613832702,-300.0,0.00016337,2]
[342237102,1731613832711,-300.0,0.00016337,2]
[342237103,1731613832720,-211.7843659,0.00016337,2]
[342237104,1731613832734,-200.6851463,0.00016337,2]
[342237105,1731613832743,-284.10462246,0.00016338,2]
[342237106,1731613832752,-7432.26000172,0.00016338,2]
[342237107,1731613832763,-114349.90009443,0.00016338,2]
[342237108,1731613832774,-1000.0,0.00016338,2]
[342237109,1731613832783,-416.32851676,0.000164,2]
[342237110,1731613832792,-7538.5239983,0.00016435,2]
[342237111,1731613832801,-205.62446011,0.00016437,2]
[342237112,1731613832810,-228.53122411,0.00016437,2]
[342237113,1731613832820,-496.75716896,0.00016437,2]
[342237114,1731613832830,-233.1649622,0.00016437,2]
[342237115,1731613832839,-236.02114896,0.00016437,2]
[342237116,1731613832849,-163.21547354,0.00016437,2]
[342237117,1731613832858,-500.0,0.00016438,2]
[342237118,1731613832868,-591.25551454,0.00016438,2]
[342237119,1731613832877,-178.60848131,0.00016438,2]
[342237120,1731613832887,-518.72,0.00016438,2]
[342237121,1731613832896,-500.0,0.00016438,2]
[342237122,1731613832906,-163.47972428,0.00016438,2]
[342237123,1731613832915,-500.0,0.00016438,2]
[342237124,1731613832925,-500.0,0.00016438,2]
[342237125,1731613832934,-500.0,0.00016438,2]
[342237126,1731613832946,-500.0,0.00016438,2]
[342237127,1731613832955,-500.0,0.00016438,2]
[342237128,1731613832964,-500.0,0.00016438,2]
[342237129,1731613832974,-500.0,0.00016438,2]
[342237130,1731613832982,-500.0,0.00016438,2]
[342237131,1731613832991,-284.24809254,0.00016438,2]
[342237132,1731613833003,-215.75190746,0.00016438,2]
[342237133,1731613833013,-500.0,0.00016438,2]
[342237134,1731613833023,-35.968431,0.00016438,2]
[342237202,1731613838940,-175.29448321,0.00016438,2]
[342237203,1731613838954,-500.0,0.00016438,2]
[342237204,1731613838963,-641.79,0.00016438,2]
[342237205,1731613838973,-564.34,0.00016438,2]
[342237206,1731613838982,-261.69476929,0.00016438,2]
[342237227,1731613843702,-256.31523071,0.00016438,2]
[342237228,1731613843711,-434.83476929,0.00016438,2]
[342237229,1731613843723,-65.16523071,0.00016438,2]
[342237230,1731613843735,-203.52611823,0.00016438,2]
[342237231,1731613843745,-547.92,0.00016438,2]
[342237232,1731613843755,-500.0,0.00016438,2]
[342237234,1731613843764,-508.41,0.00016438,2]
[342237235,1731613843774,-500.0,0.00016438,2]
[342237237,1731613843783,-589.67,0.00016438,2]
[342237238,1731613843792,-357.82872137,0.00016438,2]
[342237254,1731613846714,-142.17127863,0.00016438,2]
[342237255,1731613846724,-670.06945499,0.00016438,2]
[342237256,1731613846740,-68.01054501,0.00016438,2]
[342237257,1731613846749,-500.0,0.00016438,2]
[342237258,1731613846759,-500.0,0.00016438,2]
[342237259,1731613846768,-581.61,0.00016438,2]
[342237260,1731613846778,-500.0,0.00016438,2]
[342237261,1731613846788,-500.0,0.00016438,2]
[342237262,1731613846797,-500.0,0.00016438,2]
[342237263,1731613846807,-500.0,0.00016438,2]
[342237264,1731613846818,-500.0,0.00016438,2]
[342237265,1731613846828,-327.49945493,0.00016438,2]
[342237268,1731613959564,205.735072,0.00015506,2]
[342237269,1731613959782,205.735072,0.00015545,2]
[342237270,1731613960014,205.735072,0.00015584,2]
[342237271,1731614215355,265.940943,0.00013973,2]
[342237272,1731614311580,6265.8704363,0.00015437,2]
[342237273,1731614370884,3000.0,0.00015437,2]
[342237274,1731614466098,25681.9858612,0.00015417,2]
[342237276,1731614900499,4184.97,0.00027,60]
[342237278,1731614928937,261.007483,0.00013973,2]
[342237305,1731615033984,-930.26204725,0.00016038,2]
[342237307,1731615033997,-181.54792241,0.00016038,2]
[342237309,1731615034007,-150.05207759,0.00016137,2]
[342237311,1731615034019,-149.94792241,0.00016137,2]
[342237313,1731615034028,-300.0,0.00016137,2]
[342237314,1731615034039,-1244.77411425,0.00016138,2]
[342237315,1731615034091,-492.92684004,0.00016138,2]
[342237316,1731615034102,-580.14384415,0.00016138,2]
[342237362,1731615038006,-668.84170613,0.00016138,2]
[342237364,1731615038017,-160.26922661,0.00016138,2]
[342237365,1731615038027,-159.97185687,0.00016209,2]
[342237366,1731615038038,-165.21480427,0.00016209,2]
[342237367,1731615038047,-470.04721481,0.00016209,2]
[342237368,1731615038057,-189.40308164,0.0001621,2]
[342237369,1731615038067,-42536.25210963,0.0001621,2]
[342237370,1731615038080,-1668.75195958,0.0001621,2]
[342237371,1731615038097,-34983.7983481,0.0001621,2]
[342237385,1731615039826,-3627.88194319,0.0001621,2]
[342237386,1731615039880,-1649.70424281,0.0001621,2]
[342237392,1731615042991,-17731.55414835,0.0001621,2]
[342237393,1731615043005,-7190.57193907,0.0001621,2]
[342237406,1731615046013,-1476.62326414,0.0001621,2]
[342237408,1731615254212,12520.3004109,0.00015258,2]
[342237409,1731615284004,19184.4586187,0.00015339,2]
[342237410,1731615547490,1630.771715,0.00015207,2]
[342237411,1731615547831,1630.771715,0.00015892,2]
[342237412,1731615634700,247.957108,0.00013973,2]
[342237438,1731616231977,-300.0,0.00016109,2]
[342237439,1731616231988,-300.0,0.00016109,2]
[342237440,1731616231997,-21386.86182718,0.0001611,2]
[342237441,1731616232007,-1000.0,0.0001611,2]
[342237442,1731616232016,-1563.93085887,0.00016173,2]
[342237443,1731616232029,-150.112233,0.000162,2]
[342237444,1731616232038,-150.112233,0.000162,2]
[342237445,1731616232047,-476.72550487,0.00016209,2]
[342237446,1731616232056,-166.50959834,0.00016209,2]
[342237447,1731616232065,-500.0,0.00016209,2]
[342237448,1731616232074,-500.0,0.00016209,2]
[342237449,1731616232083,-500.0,0.00016209,2]
[342237450,1731616232092,-500.0,0.00016209,2]
[342237451,1731616232101,-500.0,0.00016209,2]
[342237452,1731616232111,-206.04522671,0.00016209,2]
[342237453,1731616232122,-293.95477329,0.00016209,2]
[342237454,1731616232131,-94.04521671,0.00016209,2]
[342237455,1731616232143,-405.95478329,0.00016209,2]
[342237456,1731616232152,-35.05021671,0.00016209,2]
[342237457,1731616232163,-394.33629681,0.00016209,2]
[342237458,1731616232172,-500.0,0.00016209,2]
[342237459,1731616232181,-500.0,0.00016209,2]
[342237460,1731616232191,-300.0,0.00016209,2]
[342237461,1731616232200,-500.0,0.00016209,2]
[342237462,1731616232209,-200.0,0.00016209,2]
[342237463,1731616232218,-500.0,0.00016209,2]
[342237464,1731616232228,-500.0,0.00016209,2]
[342237465,1731616232240,-500.0,0.00016209,2]
[342237466,1731616232249,-500.0,0.00016209,2]
[342237467,1731616232259,-500.0,0.00016209,2]
[342237468,1731616232269,-500.0,0.00016209,2]
[342237469,1731616232279,-500.0,0.00016209,2]
[342237470,1731616232289,-500.0,0.00016209,2]
[342237471,1731616232298,-500.0,0.00016209,2]
[342237472,1731616232307,-500.0,0.00016209,2]
[342237473,1731616232316,-500.0,0.00016209,2]
[342237474,1731616232326,-500.0,0.00016209,2]
[342237475,1731616232335,-500.0,0.00016209,2]
[342237476,1731616232345,-500.0,0.00016209,2]
[342237477,1731616232355,-500.0,0.00016209,2]
[342237478,1731616232364,-500.0,0.00016209,2]
[342237479,1731616232374,-500.0,0.00016209,2]
[342237480,1731616232383,-500.0,0.00016209,2]
[342237481,1731616232392,-500.0,0.00016209,2]
[342237482,1731616232402,-500.0,0.00016209,2]
[342237483,1731616232411,-500.0,0.00016209,2]
[342237484,1731616232422,-500.0,0.00016209,2]
[342237485,1731616232433,-233.54717437,0.00016209,2]
[342237486,1731616232448,-266.45282563,0.00016209,2]
[342237487,1731616232469,-500.0,0.00016209,2]
[342237488,1731616232488,-500.0,0.00016209,2]
[342237489,1731616232498,-500.0,0.00016209,2]
[342237490,1731616232508,-202.55146609,0.00016209,2]
[342237491,1731616232518,-500.0,0.00016209,2]
[342237492,1731616232528,-500.0,0.00016209,2]
[342237493,1731616232538,-500.0,0.00016209,2]
[342237494,1731616232547,-324.77976139,0.00016209,2]
[342237495,1731616232726,-500.0,0.00016209,2]
[342237496,1731616232757,-500.0,0.00016209,2]
[342237497,1731616232767,-500.0,0.00016209,2]
[342237498,1731616232777,-500.0,0.00016209,2]
[342237499,1731616232786,-500.0,0.00016209,2]
[342237500,1731616232796,-162.9718877,0.00016209,2]
[342237501,1731616232806,-500.0,0.00016209,2]
[342237502,1731616232816,-550.0,0.00016209,2]
[342237503,1731616232825,-500.0,0.00016209,2]
[342237504,1731616232834,-500.0,0.00016209,2]
[342237505,1731616232844,-500.0,0.00016209,2]
[342237506,1731616232854,-500.0,0.00016209,2]
[342237507,1731616232863,-500.0,0.00016209,2]
[342237508,1731616232873,-500.0,0.00016209,2]
[342237509,1731616232882,-1000.05474985,0.00016209,2]
[342237510,1731616232892,-127868.01522372,0.0001621,2]
[342237511,1731616232904,-5654.18,0.0001621,2]
[342237512,1731616232916,-28614.59054933,0.0001621,2]
[342237592,1731616238047,-3095.73221087,0.0001621,2]
[342237603,1731616239978,-1771.8365846,0.0001621,2]
[342237604,1731616239995,-171695.35199874,0.0001621,2]
[342237625,1731616243081,-6157.30051805,0.0001621,2]
[342237626,1731616243093,-1480.07784529,0.0001621,2]
[342237627,1731616243104,-1246.72017249,0.0001621,2]
[342237628,1731616243117,-1627.56831703,0.0001621,2]
[342237629,1731616243128,-517.14,0.0001621,2]
[342237645,1731616246022,-14654.21950238,0.0001621,2]
[342237646,1731616246034,-28236.05587404,0.0001621,2]
[342237647,1731616246092,-2727.7450609,0.0001621,2]
[342237648,1731616266552,215.095303,0.00015405,2]
[342237649,1731616333593,297.141,0.00015886,2]
[342237650,1731616333872,204.52386878,0.00015886,2]
[342237651,1731616531324,252.212419,0.00013973,2]
[342237652,1731616550083,1673.6475418,0.00015216,2]
[342237653,1731616604662,250.0,0.00015216,2]
[342237654,1731616655819,1234.123141,0.00015216,2]
[342237655,1731616656206,1234.123141,0.00015901,2]
[342237656,1731616695204,16879.32066813,0.00015854,2]
[342237657,1731616729829,382.0441416,0.00015191,2]
[342237658,1731616783062,162.928,0.0001178,2]
[342237659,1731616786908,162.945,0.000135,60]
[342237660,1731616787518,163.296,0.0001404,3]
[342237661,1731616813930,1253.0494306,0.00015215,2]
[342237662,1731616816327,489.28239575,0.00015495,2]
[342237663,1731616893347,24900.0,0.0001519,2]
[342237664,1731616933592,302.745,0.00015886,2]
[342237665,1731616986891,170.764799,0.0001519,2]
[342237666,1731616987255,170.764799,0.00015197,2]
[342237667,1731616987358,170.764799,0.00015205,2]
[342237668,1731616987605,170.764799,0.00015212,2]
[342237669,1731616987844,170.764799,0.0001522,2]
[342237670,1731616988067,170.764799,0.00015227,2]
[342237671,1731616988311,170.764799,0.00015235,2]
[342237672,1731616988566,170.764799,0.00015243,2]
[342237673,1731616988969,170.764799,0.0001525,2]
[342237674,1731616989183,170.764799,0.00015258,2]
[342237675,1731616989420,170.764799,0.00015265,2]
[342237676,1731617303418,400.0,0.00013973,2]
[342237678,1731617385044,215.095303,0.0001519,2]
[342237726,1731617432223,-194.76358577,0.00016009,2]
[342237728,1731617432233,-300.0,0.00016109,2]
[342237730,1731617432243,-300.0,0.00016109,2]
[342237732,1731617432253,-722.76302552,0.0001611,2]
[342237734,1731617432265,-5404.19128385,0.0001611,2]
[342237736,1731617432275,-1000.0,0.0001611,2]
[342237738,1731617432285,-1407.53777292,0.00016169,2]
[342237741,1731617432294,-11894.38164323,0.00016169,2]
[342237744,1731617432312,-1250.56442524,0.00016169,2]
[342237785,1731617438260,-5731.6433518,0.00016169,2]
[342237786,1731617438484,-1042.04761562,0.00016169,2]
[342237787,1731617438496,-81.36296411,0.00016169,2]
[342237788,1731617438505,-246.23203589,0.0001621,2]
[342237803,1731617440157,-71.58496736,0.0001621,2]
[342237804,1731617440167,-28298.73195464,0.0001621,2]
[342237805,1731617440179,-3290.01473372,0.0001621,2]
[342237806,1731617440191,-5672.29539155,0.0001621,2]
[342237807,1731617440203,-34586.13390419,0.0001621,2]
[342237808,1731617440215,-947.42886758,0.0001621,2]
[342237809,1731617440227,-1268.41937026,0.0001621,2]
[342237810,1731617440238,-3271.81767709,0.0001621,2]
[342237811,1731617440250,-1581.6076105,0.0001621,2]
[342237826,1731617443185,-2504.79359754,0.0001621,2]
[342237827,1731617443196,-306.24798982,0.0001621,2]
[342237828,1731617443207,-7747.90737035,0.0001621,2]
[342237829,1731617443218,-8511.97514807,0.0001621,2]
[342237830,1731617443243,-41786.31426816,0.0001621,2]
[342237839,1731617446345,-12782.41589892,0.0001621,2]
[342237854,1731617510993,1944.402412,0.0001524,2]
[342237855,1731617511378,1944.402412,0.00015925,2]
[342237856,1731617533564,242.196,0.00015886,2]
[342237857,1731617647718,23907.0698125,0.0001519,2]
[342237858,1731617846080,2031.8255547,0.00015201,2]
[342237862,1731617927727,1823.8060022,0.00015201,2]
[342237863,1731618123707,223.168226,0.00015201,2]
[342237864,1731618158880,400.0,0.00013973,2]
[342237865,1731618355267,648.134137,0.00015208,2]
[342237866,1731618355564,648.134137,0.00015893,2]
[342237869,1731618568876,151.40764787,0.00027,60]
[342237981,1731618632374,-210.24695126,0.000161,2]
[342237984,1731618632384,-300.0,0.00016109,2]
[342237986,1731618632394,-300.0,0.00016109,2]
[342237989,1731618632403,-499.51804874,0.0001611,2]
[342237991,1731618632416,-767.26594687,0.0001611,2]
[342237993,1731618632426,-29.07029211,0.0001611,2]
[342237996,1731618632437,-744.65990598,0.0001611,2]
[342237998,1731618632448,-1311.8942382,0.0001611,2]
[342238000,1731618632464,-6919.20167993,0.0001611,2]
[342238002,1731618632473,-350.52134652,0.0001611,2]
[342238004,1731618632483,-147.79160626,0.0001611,2]
[342238007,1731618632496,-852.20839374,0.0001611,2]
[342238009,1731618632506,-2018.59160626,0.000162,2]
[342238011,1731618632518,-5154.83872658,0.000162,2]
[342238013,1731618632529,-300.02,0.00016209,2]
[342238014,1731618632538,-2891.74574032,0.00016209,2]
[342238015,1731618632548,-500.0,0.00016209,2]
[342238016,1731618632562,-210.79975014,0.00016209,2]
[342238017,1731618632571,-489.71741966,0.00016209,2]
[342238018,1731618632581,-11303.32407031,0.0001621,2]
[342238062,1731618638447,-1445.87287016,0.00016209,2]
[342238063,1731618638459,-237.8413131,0.0001621,2]
[342238064,1731618638473,-247.94011032,0.0001621,2]
[342238065,1731618638484,-25882.35988968,0.0001621,2]
[342238066,1731618638498,-9970.51159165,0.0001621,2]
[342238067,1731618638562,-1000.0,0.0001611,2]
[342238068,1731618638571,-19630.79692479,0.0001621,2]
[342238069,1731618638583,-1317.07391835,0.0001621,2]
[342238081,1731618640321,-1520.75,0.0001621,2]
[342238082,1731618640374,-4868.21725862,0.0001621,2]
[342238096,1731618643445,-5001.95402074,0.0001621,2]
[342238097,1731618643555,-7012.56797315,0.0001621,2]
[342238098,1731618643575,-15353.25106295,0.0001621,2]
[342238099,1731618643586,-3607.31405918,0.0001621,2]
[342238100,1731618643597,-13973.36,0.0001621,2]
[342238105,1731618646419,-436.835,0.0001621,2]
[342238115,1731618881402,400.0,0.00013973,2]
[342238116,1731618938064,1585.9145318,0.00015336,2]
[342238117,1731619159395,7863.906624,0.00015214,2]
[342238118,1731619159971,7863.906624,0.00015899,2]
[342238119,1731619219383,483.66335258,0.00015456,2]
[342238120,1731619559695,400.0,0.00013973,2]
[342238130,1731619701182,401.02754493,0.000123,2]
[342238131,1731619703116,10171.96262278,0.000125,2]
[342238132,1731619714259,17621.25516909,0.000134,2]
[342238133,1731619715119,267.7938432,0.00014114,2]
[342238134,1731619717242,273.66049653,0.0001,2]
[342238135,1731619724258,20068.80100461,0.0001,2]
[342238138,1731619726919,4356.19474766,0.00015,2]
[342238139,1731619727402,561.73630387,0.000149,2]
[342238140,1731619727443,1000.0,0.0001,2]
[342238169,1731619832603,-300.0,0.00016109,2]
[342238170,1731619832613,-300.0,0.00016109,2]
[342238171,1731619832622,-341.88670727,0.0001611,2]
[342238172,1731619832632,-7174.78901329,0.0001611,2]
[342238186,1731619840471,-28836.27573234,0.0001611,2]
[342238187,1731619840481,-1000.0,0.0001611,2]
[342238188,1731619840490,-1140.10559613,0.00016128,2]
[342238189,1731619840500,-936.8821502,0.00016128,2]
[342238190,1731619840511,-1711.05309153,0.00016128,2]
[342238191,1731619840521,-1445.87287015,0.00016209,2]
[342238192,1731619840530,-405.95478329,0.00016209,2]
[342238194,1731619840539,-585.21979692,0.00016209,2]
[342238196,1731619840552,-83598.59481674,0.0001621,2]
[342238199,1731619840574,-402874.81934027,0.0001621,2]
[342238262,1731619846562,-8816.99969314,0.0001621,2]
[342238264,1731619933563,71.12952637,0.00015886,2]
[342238265,1731619933587,153.19947363,0.00015886,2]
[342238266,1731619945963,46.80052637,0.0001534,2]
[342238270,1731620071199,500.0,0.00027,60]
[342238319,1731621031802,-400.0,0.00013973,2]
[342238321,1731621031813,-197.674461,0.00015116,2]
[342238350,1731621037846,-1077.07157433,0.00015116,2]
[342238351,1731621037881,-1330.95599667,0.00015116,2]
[342238352,1731621037891,-243.7970359,0.00015786,2]
[342238353,1731621037903,-2091.95523805,0.00015801,2]
[342238354,1731621037925,-513.74679395,0.00015801,2]
[342238355,1731621037935,-212.004,0.00015886,2]
[342238356,1731621037945,-152.0,0.00016065,2]
[342238357,1731621037956,-1026.09503649,0.00016128,2]
[342238358,1731621037978,-303.9936668,0.000162,2]
[342238359,1731621037987,-270.83183488,0.00016209,2]
[342238366,1731621039764,-29.16816512,0.00016209,2]
[342238367,1731621039774,-300.0,0.00016209,2]
[342238368,1731621039783,-366.54047722,0.0001621,2]
[342238369,1731621039795,-23.60605406,0.0001621,2]
[342238370,1731621039805,-596.10700073,0.0001621,2]
[342238371,1731621039817,-261.546,0.0001621,2]
[342238372,1731621039832,-97485.43932332,0.0001621,2]
[342238390,1731621042746,-425.58490074,0.0001621,2]
[342238391,1731621042759,-4978.79789984,0.0001621,2]
[342238431,1731621045926,-579.99506853,0.0001621,2]
[342238503,1731622231951,-400.0,0.00013973,2]
[342238505,1731622231961,-298.755902,0.00014702,2]
[342238507,1731622231971,-868.567344,0.00014814,2]
[342238508,1731622231980,-77.92521825,0.00015057,2]
[342238536,1731622238112,-222.07478175,0.00015057,2]
[342238537,1731622238122,-300.0,0.00015057,2]
[342238538,1731622238135,-18568.5706363,0.00015058,2]
[342238539,1731622238145,-465.93316762,0.00015417,2]
[342238540,1731622238155,-868.567344,0.00015499,2]
[342238541,1731622238164,-305.1735921,0.000159,2]
[342238542,1731622238175,-212.2422435,0.000159,2]
[342238543,1731622238185,-153.0,0.000159,2]
[342238544,1731622238194,-254.1865593,0.00015978,2]
[342238545,1731622238203,-212.5904416,0.00015978,2]
[342238546,1731622238213,-418.3134073,0.00015978,2]
[342238547,1731622238222,-503.72245063,0.00016109,2]
[342238548,1731622238232,-515.19377311,0.0001611,2]
[342238549,1731622238241,-21914.36338822,0.0001611,2]
[342238550,1731622238253,-15541.13044958,0.0001611,2]
[342238551,1731622238263,-923.48553285,0.00016173,2]
[342238552,1731622238279,-23.6580197,0.00016173,2]
[342238553,1731622238302,-1561.09066519,0.00016173,2]
[342238554,1731622238322,-77.31041774,0.00016184,2]
[342238555,1731622238340,-528.23058551,0.00016184,2]
[342238556,1731622238354,-263.02634075,0.00016184,2]
[342238557,1731622238365,-465.04665838,0.00016187,2]
[342238558,1731622238375,-455.0279281,0.000162,2]
[342238559,1731622238389,-491.24794209,0.00016209,2]
[342238560,1731622238398,-172.51013523,0.00016209,2]
[342238561,1731622238410,-97.48865866,0.00016209,2]
[342238562,1731622238420,-175.22134134,0.00016209,2]
[342238563,1731622238586,-324.77865866,0.00016209,2]
[342238564,1731622238596,-180.64479064,0.00016209,2]
[342238565,1731622238609,-319.35520936,0.00016209,2]
[342238566,1731622238619,-154.00316045,0.00016209,2]
[342238567,1731622238629,-257.54519504,0.00016209,2]
[342238568,1731622238638,-51.10280895,0.00016209,2]
[342238569,1731622238649,-137.61067846,0.00016209,2]
[342238570,1731622238658,-500.0,0.00016209,2]
[342238571,1731622238668,-500.0,0.00016209,2]
[342238572,1731622238677,-500.0,0.00016209,2]
[342238573,1731622238687,-500.0,0.00016209,2]
[342238574,1731622238698,-500.0,0.00016209,2]
[342238575,1731622238707,-500.0,0.00016209,2]
[342238576,1731622238718,-500.0,0.00016209,2]
[342238577,1731622238727,-500.0,0.00016209,2]
[342238578,1731622238736,-500.0,0.00016209,2]
[342238579,1731622238745,-500.0,0.00016209,2]
[342238580,1731622238754,-500.0,0.00016209,2]
[342238581,1731622238765,-500.0,0.00016209,2]
[342238582,1731622238775,-500.0,0.00016209,2]
[342238583,1731622238786,-500.0,0.00016209,2]
[342238584,1731622238796,-361.20846436,0.00016209,2]
[342238592,1731622239920,-138.79153564,0.00016209,2]
[342238593,1731622239930,-500.0,0.00016209,2]
[342238594,1731622239940,-335.0,0.00016209,2]
[342238596,1731622239955,-480.0,0.00016209,2]
[342238597,1731622239964,-500.0,0.00016209,2]
[342238598,1731622239974,-500.0,0.00016209,2]
[342238599,1731622239984,-116.20846536,0.00016209,2]
[342238608,1731622243092,-383.79153464,0.00016209,2]
[342238609,1731622243102,-555.11405622,0.00016209,2]
[342238610,1731622243112,-500.0,0.00016209,2]
[342238611,1731622243122,-500.0,0.00016209,2]
[342238613,1731622243131,-605.51140562,0.00016209,2]
[342238614,1731622243145,-2928.26149426,0.0001621,2]
[342238622,1731622246026,-8790.0,0.0001621,2]
[342238629,1731622942946,162.225,0.000162,60]
[342238657,1731623380416,162.301,0.0002619,60]
[342238724,1731623432256,-400.0,0.00013973,2]
[342238725,1731623432266,-300.0,0.00014064,2]
[342238726,1731623432276,-300.0,0.00014064,2]
[342238727,1731623432286,-4631.29453291,0.00014065,2]
[342238728,1731623432297,-1059.27521353,0.00014065,2]
[342238729,1731623432309,-16053.26656796,0.00014065,2]
[342238730,1731623432322,-1395.86718,0.00014169,2]
[342238731,1731623432331,-1395.86718,0.00014854,2]
[342238732,1731623432342,-162.213849,0.00014948,2]
[342238733,1731623432351,-14132.0,0.00015,2]
[342238734,1731623432361,-162.213849,0.00015022,2]
[342238735,1731623432371,-1000.0,0.00015357,2]
[342238736,1731623432381,-1000.0,0.00015368,2]
[342238737,1731623432390,-420.0,0.00015407,2]
[342238738,1731623432401,-1000.0,0.00015443,2]
[342238739,1731623432410,-420.0,0.00015471,2]
[342238740,1731623432419,-1000.0,0.00015476,2]
[342238741,1731623432429,-1000.0,0.00015504,2]
[342238742,1731623432438,-1000.0,0.00015513,2]
[342238743,1731623432448,-1000.0,0.00015521,2]
[342238744,1731623432458,-1000.0,0.00015525,2]
[342238745,1731623432468,-1395.86718,0.00015539,2]
[342238746,1731623432478,-1000.0,0.00015558,2]
[342238747,1731623432488,-1000.0,0.00015562,2]
[342238748,1731623432497,-500.0,0.0001558,2]
[342238749,1731623432507,-322.3431688,0.00015641,2]
[342238750,1731623432516,-306.0,0.00015781,2]
[342238751,1731623432526,-153.0,0.00015941,2]
[342238752,1731623432534,-500.0,0.0001608,2]
[342238753,1731623432544,-342.29441074,0.0001611,2]
[342238754,1731623432553,-477.70252483,0.0001611,2]
[342238755,1731623432562,-1000.0,0.0001611,2]
[342238756,1731623432574,-2391.89226533,0.00016173,2]
[342238757,1731623432583,-6550.04319141,0.00016173,2]
[342238758,1731623432592,-153.0,0.000162,2]
[342238759,1731623432602,-153.0,0.000162,2]
[342238760,1731623432611,-153.0,0.000162,2]
[342238761,1731623432620,-5999.999999,0.000162,2]
[342238762,1731623432629,-615.0,0.000162,2]
[342238763,1731623432639,-157.07365053,0.00016209,2]
[342238764,1731623432649,-733.67485738,0.00016209,2]
[342238765,1731623432664,-615.70874063,0.00016209,2]
[342238766,1731623432675,-500.0,0.00016209,2]
[342238767,1731623432684,-500.0,0.00016209,2]
[342238768,1731623432694,-426.55729089,0.00016209,2]
[342238769,1731623432705,-452.98214094,0.00016209,2]
[342238770,1731623432714,-500.0,0.00016209,2]
[342238771,1731623432723,-500.0,0.00016209,2]
[342238772,1731623432734,-500.0,0.00016209,2]
[342238773,1731623432745,-310.0,0.00016209,2]
[342238774,1731623432756,-88789.32145056,0.0001621,2]
[342238775,1731623432768,-3604.519,0.0001621,2]
[342238776,1731623432783,-149000.0,0.0001621,2]
[342238777,1731623435399,200.0,0.00027,120]
[342238779,1731623438124,-366.83742869,0.00016209,2]
[342238780,1731623438134,-901.2538659,0.0001621,2]
[342238781,1731623438238,-2183810.21878185,0.0001621,2]
[342238782,1731623438247,-500.0,0.00016273,2]
[342238783,1731623438257,-501.59412102,0.00016273,2]
[342238784,1731623438265,-500.0,0.00016273,2]
[342238785,1731623438275,-304.13653616,0.00016273,2]
[342238786,1731623438284,-500.0,0.00016273,2]
[342238787,1731623438293,-500.18368657,0.00016273,2]
[342238788,1731623438302,-500.0,0.00016273,2]
[342238789,1731623438311,-159.58653761,0.00016273,2]
[342238790,1731623438320,-500.0,0.00016273,2]
[342238791,1731623438329,-515.01818761,0.00016273,2]
[342238792,1731623438339,-162.70373599,0.00016273,2]
[342238793,1731623438348,-500.67272822,0.00016273,2]
[342238794,1731623438358,-502.08455944,0.00016273,2]
[342238795,1731623438367,-381.88204628,0.00016273,2]
[342238796,1731623438376,-500.0,0.00016273,2]
[342238797,1731623438385,-500.0,0.00016273,2]
[342238798,1731623438394,-500.0,0.00016273,2]
[342238799,1731623438402,-500.0,0.00016273,2]
[342238800,1731623438412,-500.0,0.00016273,2]
[342238801,1731623438421,-263.96911224,0.00016273,2]
[342238802,1731623438430,-153.36296979,0.00016273,2]